bitfinex-derivatives/quotes_BNBF0:USTF0_20250303
["timestamp","ask_amount","ask_price","bid_price","bid_amount"]
[1740961797297,1.184,622.87,621.55,1.189564]
[1740961797596,1.184,622.87,621.57,0.32176585]
[1740961799197,0.209,622.86,621.57,0.32176585]
[1740961800800,1.359,622.85,621.57,0.32176585]
[1740961802295,0.965,622.84,621.57,0.32176585]
[1740961802700,0.965,622.84,621.67,1.189564]
[1740961802900,0.965,622.84,621.69,0.32170374]
[1740961804903,1.056,622.83,621.69,0.32170374]
[1740961809811,2.075,622.83,621.69,0.32170374]
[1740961813912,2.969,622.83,621.69,0.32170374]
[1740961821629,4.021,622.83,621.69,0.32170374]
[1740961828426,4.021,622.83,621.82,1.189564]
[1740961828831,4.021,622.83,621.84,0.32162614]
[1740961830425,4.23,622.83,621.84,0.32162614]
[1740961831030,5.737,622.83,621.84,0.32162614]
[1740961835132,5.737,622.83,621.86,1.189564]
[1740961835337,5.737,622.83,621.88,0.32160545]
[1740961837032,5.737,622.83,621.91,1.189564]
[1740961837237,5.737,622.83,621.93,0.32157959]
[1740961840241,5.737,622.83,621.97,1.189564]
[1740961840439,5.737,622.83,621.99,0.32154857]
[1740961865857,5.737,622.83,621.99,1.51111257]
[1740961867961,5.737,622.83,622.07,1.189564]
[1740961869362,5.737,622.83,622.08,0.32150205]
[1740961898380,5.737,622.83,621.51,1.189564]
[1740961899591,5.737,622.83,621.27,2.672291]
[1740961899592,5.737,622.83,621.49,1.189564]
[1740961902594,5.737,622.83,621.51,1.189564]
[1740961905400,5.737,622.83,620.96,2.41691759]
[1740961905401,5.737,622.83,620.99,1.189564]
[1740961908824,5.737,622.83,620.85,1.189564]
[1740961910906,5.737,622.83,620.45,2.66592862]
[1740961910907,5.737,622.83,620.93,1.189564]
[1740961912604,5.737,622.83,620.55,2.66436037]
[1740961912605,0.29525876,622.82,621.17,1.189564]
[1740961913205,1.43689971,623.67,621.17,1.189564]
[1740961913206,0.29525876,623.65,621.17,1.189564]
[1740961913405,1.43689971,623.67,621.17,1.189564]
[1740961913406,0.29525876,623.64,621.17,1.189564]
[1740961913605,0.29525876,623.63,621.17,1.189564]
[1740961913807,0.29525876,623.62,621.17,1.189564]
[1740961914106,0.29525876,623.61,621.17,1.189564]
[1740961914309,0.29525876,623.6,621.17,1.189564]
[1740961914508,0.29525876,623.59,621.17,1.189564]
[1740961914807,0.29525876,623.58,621.17,1.189564]
[1740961915006,0.29525876,623.57,621.17,1.189564]
[1740961915205,0.29525876,623.56,621.17,1.189564]
[1740961915406,1.43689971,623.46,621.18,1.189564]
[1740961915603,0.29525876,623.45,621.18,1.189564]
[1740961915802,0.29525876,623.44,621.18,1.189564]
[1740961916006,1.43689971,623.46,621.18,1.189564]
[1740961916007,0.29525876,623.43,621.18,1.189564]
[1740961916203,0.29525876,623.42,621.18,1.189564]
[1740961916408,0.29525876,623.41,621.18,1.189564]
[1740961916608,0.29525876,623.4,621.18,1.189564]
[1740961916803,0.29525876,623.39,621.18,1.189564]
[1740961917110,0.29525876,623.38,621.18,1.189564]
[1740961917309,0.29525876,623.37,621.18,1.189564]
[1740961917508,0.29525876,623.36,621.18,1.189564]
[1740961917705,0.29525876,623.35,621.27,1.189564]
[1740961917911,0.29525876,623.34,621.27,1.189564]
[1740961918108,0.29525876,623.33,621.27,1.189564]
[1740961918411,5.523,623.45,621.27,1.189564]
[1740961918713,0.29523096,623.44,621.27,1.189564]
[1740961918909,0.29523096,623.43,621.27,1.189564]
[1740961919110,0.29523096,623.42,621.27,1.189564]
[1740961919330,0.29523096,623.41,621.27,1.189564]
[1740961919511,0.29523096,623.4,621.27,1.189564]
[1740961919713,0.29523096,623.39,621.33,1.189564]
[1740961919911,0.29523096,623.38,621.33,1.189564]
[1740961920112,0.29523096,623.37,621.33,1.189564]
[1740961920311,0.29523096,623.36,621.33,1.189564]
[1740961920511,0.29523096,623.35,621.33,1.189564]
[1740961920715,5.523,623.45,621.33,1.189564]
[1740961920716,0.29523096,623.34,621.33,1.189564]
[1740961920913,0.29523096,623.33,621.33,1.189564]
[1740961921214,0.29523096,623.32,621.33,1.189564]
[1740961921410,5.523,623.45,621.33,1.189564]
[1740961921608,5.523,623.45,621.24,1.189564]
[1740961921609,0.29525426,623.44,621.35,0.32187977]
[1740961921814,0.32081101,623.42,621.35,0.32187977]
[1740961922117,0.29525426,623.41,621.35,0.32187977]
[1740961922317,0.29525426,623.4,621.35,0.32187977]
[1740961922516,0.29525426,623.39,621.35,0.32187977]
[1740961922711,0.29525426,623.38,621.35,0.32187977]
[1740961922911,0.32084188,623.36,621.35,0.32187977]
[1740961923113,0.29528083,623.35,621.35,0.32187977]
[1740961923410,0.29528083,623.34,621.35,0.32187977]
[1740961923610,0.32086247,623.32,621.35,0.32187977]
[1740961923814,0.29528083,623.31,621.35,0.32187977]
[1740961924422,0.32087792,623.29,621.35,0.32187977]
[1740961924716,0.29528083,623.28,621.35,0.32187977]
[1740961924922,0.29528083,623.27,621.35,0.32187977]
[1740961925220,0.29528083,623.26,621.35,0.32187977]
[1740961925419,0.29528083,623.25,621.35,0.32187977]
[1740961925625,0.29528083,623.24,621.35,0.32187977]
[1740961925821,0.29528083,623.23,621.35,0.32187977]
[1740961926021,0.29528083,623.22,621.35,0.32187977]
[1740961926220,0.29528083,623.21,621.35,0.32187977]
[1740961926421,0.29528083,623.2,621.35,0.32187977]
[1740961926620,0.29528083,623.19,621.35,0.32187977]
[1740961926818,0.32087792,623.29,621.35,0.32187977]
[1740961926819,0.29528083,623.18,621.35,0.32187977]
[1740961927022,0.29528083,623.17,621.35,0.32187977]
[1740961927219,0.32095001,623.15,621.35,0.32187977]
[1740961927417,0.29528083,623.14,621.35,0.32187977]
[1740961927619,0.32096546,623.12,621.35,0.32187977]
[1740961927926,0.29528083,623.11,621.35,0.32187977]
[1740961928126,0.29528083,623.1,621.35,0.32187977]
[1740961928424,0.32098606,623.08,621.35,0.32187977]
[1740961928626,0.29528083,623.07,621.35,0.32187977]
[1740961929516,0.32100152,623.05,621.35,0.32187977]
[1740961929731,0.29542443,623.04,621.35,0.32187977]
[1740961929924,0.32101698,623.02,621.35,0.32187977]
[1740961930124,0.29542443,623.01,621.35,0.32187977]
[1740961931325,0.2955035,623.0,621.35,0.32187977]
[1740961931519,0.2955035,622.99,621.35,0.32187977]
[1740961931723,0.32101698,623.02,621.35,0.32187977]
[1740961931724,0.2955035,622.98,621.35,0.32187977]
[1740961932026,0.2955035,622.97,621.35,0.32187977]
[1740961932222,0.2955035,622.96,621.35,0.32187977]
[1740961932421,0.2955035,622.95,621.35,0.32187977]
[1740961932626,0.2955035,622.94,621.35,0.32187977]
[1740961932927,0.2955035,622.93,621.35,0.32187977]
[1740961933126,0.2955035,622.92,621.35,0.32187977]
[1740961933328,0.2955035,622.91,621.35,0.32187977]
[1740961933520,0.32108397,622.89,621.35,0.32187977]
[1740961933723,0.2955035,622.88,621.35,0.32187977]
[1740961933922,0.2955035,622.87,621.35,0.32187977]
[1740961934131,0.2955035,622.86,621.35,0.32187977]
[1740961934428,0.2955035,622.85,621.35,0.32187977]
[1740961934629,0.2955035,622.84,621.35,0.32187977]
[1740961934827,0.32108397,622.89,621.35,0.32187977]
[1740961934828,0.2955035,622.83,621.35,0.32187977]
[1740961935025,0.2955035,622.82,621.35,0.32187977]
[1740961935222,0.2955035,622.81,621.35,0.32187977]
[1740961935527,0.2955035,622.8,621.35,0.32187977]
[1740961935732,0.2955035,622.79,621.35,0.32187977]
[1740961936027,0.2955035,622.78,621.35,0.32187977]
[1740961936225,0.2955035,622.88,621.35,0.32187977]
[1740961936423,0.2955035,622.87,621.35,0.32187977]
[1740961936625,0.2955035,622.86,621.35,0.32187977]
[1740961936825,0.2955035,622.85,621.35,0.32187977]
[1740961937028,0.2955035,622.84,621.35,0.32187977]
[1740961937229,0.2955035,622.83,621.35,0.32187977]
[1740961937424,0.2955035,622.82,621.35,0.32187977]
[1740961937629,0.2955035,622.81,621.35,0.32187977]
[1740961937930,0.2955035,622.8,621.35,0.32187977]
[1740961938132,0.2955035,622.88,621.35,0.32187977]
[1740961938327,2.399,622.79,621.35,0.32187977]
[1740961938523,0.2955035,622.78,621.35,0.32187977]
[1740961940635,0.2955035,622.77,621.35,0.32187977]
[1740961940836,0.32115616,622.75,621.35,0.32187977]
[1740961941232,0.2955035,622.74,621.35,0.32187977]
[1740961941435,0.2955035,622.73,621.35,0.32187977]
[1740961941633,0.2955035,622.72,621.35,0.32187977]
[1740961941830,0.2955035,622.71,621.35,0.32187977]
[1740961942034,0.2955035,622.7,621.35,0.32187977]
[1740961942231,0.2955035,622.69,621.35,0.32187977]
[1740961942530,0.2955035,622.68,621.35,0.32187977]
[1740961942731,0.2955035,622.67,621.35,0.32187977]
[1740961942935,0.2955035,622.66,621.35,0.32187977]
[1740961943136,0.873,622.7,621.35,0.32187977]
[1740961943137,0.2955035,622.65,621.35,0.32187977]
[1740961943337,0.2955035,622.64,621.35,0.32187977]
[1740961943536,0.2955035,622.63,621.35,0.32187977]
[1740961943736,0.2955035,622.62,621.35,0.32187977]
[1740961943937,0.2955035,622.69,621.35,0.32187977]
[1740961944137,0.2955035,622.68,621.35,0.32187977]
[1740961944333,0.873,622.7,621.35,0.32187977]
[1740961944530,0.29556386,622.69,621.35,0.32187977]
[1740961944732,0.29556386,622.68,621.35,0.32187977]
[1740961944937,0.29556386,622.67,621.35,0.32187977]
[1740961945236,0.29556386,622.66,621.35,0.32187977]
[1740961945438,0.29556386,622.65,621.35,0.32187977]
[1740961945635,0.29556386,622.64,621.35,0.32187977]
[1740961945828,0.29556386,622.63,621.35,0.32187977]
[1740961946031,0.29556386,622.62,621.35,0.32187977]
[1740961946234,1.18356386,622.61,621.35,0.32187977]
[1740961946431,0.29556386,622.6,621.35,0.32187977]
[1740961946653,0.29556386,622.59,621.35,0.32187977]
[1740961946837,0.29556386,622.58,621.35,0.32187977]
[1740961947037,0.29556386,622.57,621.35,0.32187977]
[1740961947234,0.29556386,622.56,621.35,0.32187977]
[1740961947441,1.097,622.61,621.35,0.32187977]
[1740961947442,0.29556386,622.55,621.35,0.32187977]
[1740961947635,1.097,622.61,621.35,0.32187977]
[1740961947839,0.29559126,622.6,621.35,0.32187977]
[1740961948140,0.29559126,622.59,621.35,0.32187977]
[1740961948434,0.29559126,622.58,621.35,0.32187977]
[1740961948641,0.61684027,622.57,621.35,0.32187977]
[1740961948835,0.32125933,622.55,621.35,0.32187977]
[1740961949035,0.29559126,622.54,621.35,0.32187977]
[1740961949339,0.32125933,622.55,621.35,0.32187977]
[1740961949534,0.29553344,622.54,621.35,0.32187977]
[1740961950342,0.32126965,622.53,621.35,0.32187977]
[1740961950542,0.29553344,622.52,621.35,0.32187977]
[1740961951043,0.29553418,622.51,621.35,0.32187977]
[1740961951240,0.29553418,622.52,621.35,0.32187977]
[1740961951437,0.32127997,622.51,621.35,0.32187977]
[1740961951641,0.29553418,622.5,621.35,0.32187977]
[1740961952243,0.3212903,622.49,621.35,0.32187977]
[1740961952443,0.29553418,622.48,621.35,0.32187977]
[1740961952645,0.3212903,622.49,621.35,0.32187977]
[1740961952844,0.29549152,622.48,621.35,0.32187977]
[1740961953444,1.082,622.47,621.35,0.32187977]
[1740961953639,0.29549152,622.46,621.35,0.32187977]
[1740961956049,0.29547068,622.45,621.35,0.32187977]
[1740961956343,0.29547068,622.44,621.35,0.32187977]
[1740961956547,0.29547068,622.43,621.35,0.32187977]
[1740961956748,0.29547068,622.42,621.35,0.32187977]
[1740961956944,0.29547068,622.46,621.35,0.32187977]
[1740961957141,0.29547068,622.45,621.35,0.32187977]
[1740961957346,0.29547068,622.46,621.35,0.32187977]
[1740961957546,0.29547068,622.45,621.35,0.32187977]
[1740961957746,0.29547068,622.46,621.35,0.32187977]
[1740961957950,0.29547068,622.45,621.35,0.32187977]
[1740961958249,0.29547068,622.44,621.35,0.32187977]
[1740961958450,0.29547068,622.46,621.35,0.32187977]
[1740961958651,0.29547068,622.45,621.35,0.32187977]
[1740961958851,0.29547068,622.44,621.35,0.32187977]
[1740961959045,0.29547068,622.43,621.35,0.32187977]
[1740961959258,0.29547068,622.42,621.35,0.32187977]
[1740961959453,0.29547068,622.41,621.35,0.32187977]
[1740961959751,0.29547068,622.4,621.35,0.32187977]
[1740961959953,0.29547068,622.39,621.35,0.32187977]
[1740961960152,0.29547068,622.38,621.35,0.32187977]
[1740961960348,0.29547068,622.37,621.35,0.32187977]
[1740961960544,0.29547068,622.46,621.35,0.32187977]
[1740961960752,0.29547068,622.45,621.35,0.32187977]
[1740961961048,0.29547068,622.44,621.35,0.32187977]
[1740961961252,0.29547068,622.46,621.35,0.32187977]
[1740961961452,0.29547068,622.45,621.35,0.32187977]
[1740961961654,1.319,622.45,621.35,0.32187977]
[1740961961852,0.29547068,622.44,621.35,0.32187977]
[1740961964558,0.32132127,622.43,621.35,0.32187977]
[1740961964860,0.29547068,622.42,621.35,0.32187977]
[1740961965158,0.32133159,622.41,621.35,0.32187977]
[1740961965358,0.29547068,622.4,621.35,0.32187977]
[1740961965656,0.32134192,622.39,621.35,0.32187977]
[1740961965857,0.29547068,622.38,621.35,0.32187977]
[1740961966459,1.057,622.37,621.35,0.32187977]
[1740961966660,0.29547068,622.36,621.35,0.32187977]
[1740961967262,0.32136257,622.35,621.35,0.32187977]
[1740961967454,0.29547068,622.34,621.35,0.32187977]
[1740961969163,0.29547068,622.34,620.62,1.189564]
[1740961969164,0.3213729,622.33,620.62,1.189564]
[1740961969357,0.29547068,622.32,620.64,0.322248]
[1740961969955,0.32138323,622.31,620.64,0.322248]
[1740961970160,0.29547068,622.3,620.64,0.322248]
[1740961970560,2.72539356,622.29,620.64,0.322248]
[1740961970761,0.6168694,622.28,620.64,0.322248]
[1740961970964,0.61687457,622.27,620.64,0.322248]
[1740961971169,0.29547068,622.26,620.64,0.322248]
[1740961975764,0.32140389,622.27,620.64,0.322248]
[1740961975966,0.29561678,622.26,620.64,0.322248]
[1740961979762,1.086,622.25,620.64,0.322248]
[1740961979967,0.29561678,622.24,620.64,0.322248]
[1740961980765,1.086,622.25,620.64,0.322248]
[1740961981068,0.29559986,622.24,620.64,0.322248]
[1740961982064,1.086,622.25,620.64,0.322248]
[1740961982264,0.29560289,622.24,620.64,0.322248]
[1740961983670,1.77542455,622.23,620.64,0.322248]
[1740961983872,0.29560289,622.22,620.64,0.322248]
[1740961985981,1.095,622.21,620.64,0.322248]
[1740961986167,0.29560289,622.2,620.64,0.322248]
[1740961987076,1.095,622.21,620.64,0.322248]
[1740961987077,0.29560289,622.19,620.64,0.322248]
[1740961987375,0.29560289,622.18,620.64,0.30744535]
[1740961987675,0.29560289,622.17,620.64,0.30744535]
[1740961987873,0.29560289,622.16,620.64,0.30744535]
[1740961988069,0.29560289,622.15,620.64,0.30744535]
[1740961988270,0.61707394,622.14,620.64,0.30744535]
[1740961988474,0.29560289,622.13,620.64,0.30744535]
[1740961988875,0.32148138,622.12,620.64,0.30744535]
[1740961989076,0.29560289,622.11,620.64,0.30744535]
[1740961990575,0.32149172,622.1,620.64,0.30744535]
[1740961990777,0.29560289,622.09,620.64,0.30744535]
[1740961990972,0.32150722,622.07,620.64,0.30744535]
[1740961991172,0.29560289,622.06,620.64,0.30744535]
[1740961991775,1.058,622.05,620.64,0.30744535]
[1740961991968,0.29560289,622.04,620.64,0.30744535]
[1740961993673,1.058,622.05,620.64,0.30744535]
[1740961993874,0.29570977,622.04,620.64,0.30744535]
[1740961995381,1.058,622.05,620.64,0.30744535]
[1740961995679,0.29567944,622.04,620.64,0.30744535]
[1740961997175,0.29565809,622.03,620.64,0.30744535]
[1740961997376,0.29565809,622.04,620.64,0.30744535]
[1740961997573,1.058,622.05,620.64,0.30744535]
[1740961998576,0.29561803,622.04,620.64,0.30744535]
[1740961998780,1.058,622.05,620.64,0.30744535]
[1740961998982,0.941,622.03,620.64,0.30744535]
[1740961999683,0.29562457,622.02,620.64,0.30744535]
[1740961999977,0.941,622.03,620.64,0.30744535]
[1740962000183,0.29564087,622.02,620.64,0.30744535]
[1740962001382,0.941,622.03,620.64,0.30744535]
[1740962001579,0.29567553,622.02,620.64,0.30744535]
[1740962002084,0.941,622.03,620.64,0.30744535]
[1740962002381,0.29572556,622.02,620.64,0.30744535]
[1740962003688,0.941,622.03,620.64,0.30744535]
[1740962003887,0.61727557,622.02,620.64,0.30744535]
[1740962004088,0.29574251,622.01,620.64,0.30744535]
[1740962006100,0.957,622.0,620.64,0.30744535]
[1740962006398,0.29574251,621.99,620.64,0.30744535]
[1740962006989,0.957,622.0,620.64,0.30744535]
[1740962007190,0.29571584,621.99,620.64,0.30744535]
[1740962009803,0.931,621.98,620.64,0.30744535]
[1740962009999,0.29571584,621.97,620.64,0.30744535]
[1740962011800,1.14,621.98,620.64,0.30744535]
[1740962011992,0.29573198,621.97,620.64,0.30744535]
[1740962012993,1.044,621.96,620.64,0.30744535]
[1740962013197,0.29573198,621.95,620.64,0.30744535]
[1740962014896,0.32157442,621.94,620.64,0.30744535]
[1740962015103,0.29573198,621.93,620.64,0.30744535]
[1740962015399,0.32158476,621.92,620.64,0.30744535]
[1740962015607,0.29573198,621.91,620.64,0.30744535]
[1740962016005,0.61732192,621.91,620.64,0.30744535]
[1740962016205,1.46673198,621.9,620.64,0.30744535]
[1740962016399,0.29573198,621.89,620.64,0.30744535]
[1740962020208,0.32160545,621.88,620.64,0.30744535]
[1740962020405,0.29573198,621.87,620.64,0.30744535]
[1740962020599,0.32161579,621.86,620.64,0.30744535]
[1740962020799,0.29573198,621.85,620.64,0.30744535]
[1740962021002,0.32162614,621.84,620.64,0.30744535]
[1740962021202,0.29573198,621.83,620.64,0.30744535]
[1740962021400,0.32163648,621.82,620.64,0.30744535]
[1740962021602,0.29573198,621.81,620.64,0.30744535]
[1740962022000,0.32164683,621.8,620.64,0.30744535]
[1740962022206,0.29573198,621.79,620.64,0.30744535]
[1740962022405,0.32165717,621.78,620.64,0.30744535]
[1740962022606,0.29573198,621.77,620.64,0.30744535]
[1740962022907,0.32166752,621.76,620.64,0.30744535]
[1740962023207,0.29573198,621.75,620.64,0.30744535]
[1740962026009,0.32166752,621.76,620.64,0.30744535]
[1740962026603,1.171,621.9,620.64,0.30744535]
[1740962026809,0.29572688,621.89,620.64,0.30744535]
[1740962027810,1.171,621.9,620.64,0.30744535]
[1740962030416,0.959,621.89,620.64,0.30744535]
[1740962030613,0.29572496,621.88,620.64,0.30744535]
[1740962032213,0.29571776,621.87,620.64,0.30744535]
[1740962032421,0.959,621.89,620.64,0.30744535]
[1740962032611,0.29571453,621.88,620.64,0.30744535]
[1740962032812,0.959,621.89,620.64,0.30744535]
[1740962033115,0.906,621.87,620.64,0.30744535]
[1740962033308,0.29571627,621.86,620.64,0.30744535]
[1740962033911,0.906,621.87,620.64,0.30744535]
[1740962035319,1.206,621.86,620.64,0.30744535]
[1740962040218,0.209,621.85,620.64,0.30744535]
[1740962041118,1.498,621.84,620.64,0.30744535]
[1740962042320,1.219,621.83,620.64,0.30744535]
[1740962047215,0.29573844,621.82,620.64,0.30744535]
[1740962049623,0.32164165,621.81,620.64,0.30744535]
[1740962049823,0.29573844,621.8,620.64,0.30744535]
[1740962050424,0.321652,621.79,620.64,0.30744535]
[1740962050625,0.29573844,621.78,620.64,0.30744535]
[1740962050821,0.32166235,621.77,620.64,0.30744535]
[1740962051021,0.29573844,621.76,620.64,0.30744535]
[1740962051324,0.32167269,621.75,620.64,0.30744535]
[1740962051528,0.29573844,621.74,620.64,0.30744535]
[1740962053632,0.32167269,621.75,620.64,0.30744535]
[1740962053827,0.29580123,621.74,620.64,0.30744535]
[1740962056631,2.262,621.73,620.64,0.30744535]
[1740962056828,0.29580123,621.72,620.64,0.30744535]
[1740962060134,2.262,621.73,620.64,0.30744535]
[1740962060334,1.259,621.71,620.64,0.30744535]
[1740962060533,0.29584992,621.7,620.64,0.30744535]
[1740962062435,1.55584992,621.7,620.64,0.30744535]
[1740962062635,0.29584992,621.69,620.64,0.30744535]
[1740962063537,0.29585913,621.68,620.64,0.30744535]
[1740962063737,0.29585913,621.67,620.64,0.30744535]
[1740962064038,0.29585913,621.66,620.64,0.30744535]
[1740962064239,0.885,621.65,620.64,0.30744535]
[1740962068443,0.209,621.64,620.64,0.30744535]
[1740962071040,1.216,621.63,620.64,0.30744535]
[1740962073847,0.826,621.62,620.64,0.30744535]
[1740962080556,0.29582995,621.61,620.64,0.30744535]
[1740962081354,0.826,621.62,620.64,0.30744535]
[1740962084361,0.29586948,621.61,620.64,0.30744535]
[1740962084755,0.826,621.62,620.64,0.30744535]
[1740962084954,0.29590837,621.61,620.64,0.30744535]
[1740962085158,1.32190837,621.61,620.64,0.30744535]
[1740962085354,0.29590837,621.6,620.64,0.30744535]
[1740962087456,1.058,621.59,620.64,0.30744535]
[1740962087657,0.29590837,621.58,620.64,0.30744535]
[1740962088163,2.184,621.59,620.64,0.30744535]
[1740962088664,0.29586488,621.58,620.64,0.30744535]
[1740962089758,2.184,621.59,620.64,0.30744535]
[1740962089759,0.29586664,621.57,620.64,0.30744535]
[1740962089962,0.29586664,621.56,620.64,0.30744535]
[1740962090163,0.29586664,621.55,620.64,0.30744535]
[1740962090370,0.29586664,621.54,620.64,0.30744535]
[1740962090563,0.209,621.54,620.64,0.30744535]
[1740962090765,0.29586664,621.53,620.64,0.30744535]
[1740962091059,0.209,621.54,620.64,0.30744535]
[1740962093065,0.29588362,621.53,620.64,0.30744535]
[1740962093364,0.209,621.54,620.64,0.30744535]
[1740962093764,1.032,621.53,620.64,0.30744535]
[1740962099266,0.2958723,621.52,620.64,0.30744535]
[1740962100262,1.032,621.53,620.64,0.30744535]
[1740962100468,0.29589523,621.52,620.64,0.30744535]
[1740962100866,0.29589523,621.52,620.04,1.189564]
[1740962101063,1.032,621.53,620.06,0.32254943]
[1740962102264,0.29599621,621.52,620.06,0.32254943]
[1740962102668,0.32179691,621.51,620.06,0.32254943]
[1740962102869,0.29599621,621.5,620.06,0.32254943]
[1740962103867,0.29596545,621.49,620.06,0.32254943]
[1740962104071,0.29596545,621.48,620.06,0.32254943]
[1740962104267,0.29596545,621.5,620.06,0.32254943]
[1740962105367,0.32179691,621.51,620.06,0.32254943]
[1740962105573,0.29594557,621.5,620.06,0.32254943]
[1740962105773,0.50494557,621.5,620.06,0.32254943]
[1740962105968,0.29594557,621.49,620.06,0.32254943]
[1740962106967,1.044,621.48,620.06,0.32254943]
[1740962107273,0.29594557,621.47,620.06,0.32254943]
[1740962108273,1.226,621.46,620.06,0.32254943]
[1740962109874,0.29595634,621.45,620.06,0.32254943]
[1740962110069,1.226,621.46,620.06,0.32254943]
[1740962110276,0.29597218,621.45,620.06,0.32254943]
[1740962111671,1.226,621.46,620.06,0.32254943]
[1740962111872,0.2959854,621.45,620.06,0.32254943]
[1740962112469,0.32183316,621.44,620.06,0.32254943]
[1740962112674,0.2959854,621.43,620.06,0.32254943]
[1740962113474,0.32184351,621.42,620.06,0.32254943]
[1740962113676,0.2959854,621.41,620.06,0.32254943]
[1740962114176,0.32185387,621.4,620.06,0.32254943]
[1740962114476,0.2959854,621.39,620.06,0.32254943]
[1740962114679,0.32186423,621.38,620.06,0.32254943]
[1740962114878,0.2959854,621.37,620.06,0.32254943]
[1740962115078,0.32187459,621.36,620.06,0.32254943]
[1740962115275,0.2959854,621.35,620.06,0.32254943]
[1740962115476,0.32188495,621.34,620.06,0.32254943]
[1740962115676,0.2959854,621.33,620.06,0.32254943]
[1740962115877,1.6339854,621.33,620.06,0.32254943]
[1740962116272,0.2959854,621.32,620.06,0.32254943]
[1740962116478,1.338,621.33,620.06,0.32254943]
[1740962116673,1.35404562,621.32,620.06,0.32254943]
[1740962116880,0.29604562,621.31,620.06,0.32254943]
[1740962119380,0.32190568,621.3,620.06,0.32254943]
[1740962119581,0.29604562,621.29,620.06,0.32254943]
[1740962119883,0.912,621.28,620.06,0.32254943]
[1740962120081,0.29604562,621.27,620.06,0.32254943]
[1740962120386,0.3219264,621.26,620.06,0.32254943]
[1740962120586,0.29604562,621.25,620.06,0.32254943]
[1740962120786,0.32193677,621.24,620.06,0.32254943]
[1740962121386,1.327,621.23,620.06,0.32254943]
[1740962121685,0.29610149,621.22,620.06,0.32254943]
[1740962126092,1.327,621.23,620.06,0.32254943]
[1740962126290,0.29607627,621.22,620.06,0.32254943]
[1740962127188,0.32195231,621.21,620.06,0.32254943]
[1740962127391,0.29607627,621.2,620.06,0.32254943]
[1740962127793,0.29611878,621.19,620.06,0.32254943]
[1740962127992,0.29611878,621.2,620.06,0.32254943]
[1740962128186,0.29611878,621.19,620.06,0.32254943]
[1740962128387,0.29611878,621.18,620.06,0.32254943]
[1740962128590,0.957,621.2,620.06,0.32254943]
[1740962128591,0.29611878,621.17,620.06,0.32254943]
[1740962128887,0.29611878,621.16,620.06,0.32254943]
[1740962129093,0.29611878,621.15,620.06,0.32254943]
[1740962129395,0.29611961,621.14,620.06,0.32254943]
[1740962129594,0.29611961,621.19,620.06,0.32254943]
[1740962129800,0.29611961,621.18,620.06,0.32254943]
[1740962129996,0.957,621.2,620.06,0.32254943]
[1740962129997,0.29611961,621.17,620.06,0.32254943]
[1740962130297,0.29611961,621.16,620.06,0.32254943]
[1740962130596,0.29611961,621.15,620.06,0.32254943]
[1740962130902,0.29611961,621.14,620.06,0.32254943]
[1740962131197,0.29611961,621.13,620.06,0.32254943]
[1740962131391,0.29611961,621.12,620.06,0.32254943]
[1740962131592,0.29611961,621.11,620.06,0.32254943]
[1740962131791,0.29611961,621.1,620.06,0.32254943]
[1740962131995,0.29611961,621.09,620.06,0.32254943]
[1740962132195,0.29611961,621.19,620.06,0.32254943]
[1740962132395,0.32196786,621.18,620.06,0.32254943]
[1740962132598,0.29611174,621.17,620.06,0.32254943]
[1740962134594,0.29609375,621.16,620.06,0.32254943]
[1740962134898,0.29609375,621.15,620.06,0.32254943]
[1740962135097,0.29609375,621.14,620.06,0.32254943]
[1740962135297,0.29609375,621.17,620.06,0.32254943]
[1740962135499,0.29609375,621.16,620.06,0.32254943]
[1740962135795,0.29613314,621.15,620.06,0.32254943]
[1740962135999,0.29613314,621.14,620.06,0.32254943]
[1740962136199,0.29613314,621.17,620.06,0.32254943]
[1740962136395,0.61811137,621.16,620.06,0.32254943]
[1740962136699,0.29613314,621.15,620.06,0.32254943]
[1740962138102,0.21,621.14,620.06,0.32254943]
[1740962138402,0.29613314,621.13,620.06,0.32254943]
[1740962140104,1.073,621.12,620.06,0.32254943]
[1740962146011,0.29607296,621.11,620.06,0.32254943]
[1740962147010,1.496,621.1,620.06,0.32254943]
[1740962147214,0.29607296,621.09,620.06,0.32254943]
[1740962148615,1.496,621.1,620.06,0.32254943]
[1740962148815,0.29617037,621.09,620.06,0.32254943]
[1740962149821,1.059,621.08,620.06,0.32254943]
[1740962150018,0.29617037,621.07,620.06,0.32254943]
[1740962150718,0.29616937,621.06,620.06,0.32254943]
[1740962151014,0.29616937,621.05,620.06,0.32254943]
[1740962151218,0.29616937,621.07,620.06,0.32254943]
[1740962151821,1.059,621.08,620.06,0.32254943]
[1740962152119,0.29618454,621.07,620.06,0.32254943]
[1740962152519,1.08818454,621.07,620.06,0.32254943]